[Event "Asian Amateur-ch Open 2022"]
[Site "Muscat"]
[Date "2022.10.03"]
[Round "7.19"]
[White "Humaidan Mohamed, Alzaabi"]
[Black "Ranjith, R.k."]
[Result "0-1"]
[ECO "B33"]
[WhiteElo "1393"]
[BlackElo "1706"]
[Annotator "NA RC COMBH"]
[PlyCount "52"]
[EventDate "2022.09.29"]
[EventType "swiss"]
[EventCountry "OMN"]
[SourceTitle "playchess.com"]
[Source "ChessBase"]
[SourceQuality "1"]
[TimeControl "5400+30"]

1. e4 {[%emt 0:00:03]} c5 {[%emt 0:00:05]} 2. Nf3 {[%emt 0:00:14]} Nc6 {[%emt 0:00:16]} 3. d4 {[%emt 0:00:38]} cxd4 {[%emt 0:00:07]} 4. Nxd4 {[%emt 0:00:08]} Nf6 {[%emt 0:00:02]} 5. Nc3 {[%emt 0:00:13]} e5 {[%emt 0:00:14]} 6. Ndb5 {[%emt 0:00:03]} d6 {[%emt 0:00:25]} 7. Bg5 {[%emt 0:00:48]} a6 {[%emt 0:00:09]} 8. Na3 {[%emt 0:00:05]} Be6 {[%emt 0:00:11]} 9. Bxf6 {[%emt 0:00:52]} gxf6 {[%emt 0:00:21]} 10. Nc4 {[%emt 0:00:18]} Rc8 {[%emt 0:02:21]} 11. Ne3 {[%emt 0:00:22]} Bh6 {[%emt 0:00:33]} 12. Ncd5 {[%emt 0:01:15]} Bxe3 {[%emt 0:11:53]} 13. Nxe3 {[%emt 0:01:18]} Ne7 {[%emt 0:00:08]} 14. Qf3 {[%emt 0:05:22]} Qa5+ {[%emt 0:01:36]} 15. Kd1 {[%emt 0:02:03]} Rg8 {[%emt 0:01:33]} 16. Bd3 {[%emt 0:01:21]} Rg6 {[%emt 0:08:24]} 17. Ke2 {[%emt 0:18:10]} Qb4 {[%emt 0:14:33]} 18. b3 {[%emt 0:01:13]} Nc6 {[%emt 0:00:34]} 19. Kf1 {[%emt 0:00:40]} Nd4 {[%emt 0:14:20]} 20. Qd1 {[%emt 0:00:13]} Qc3 {[%emt 0:00:39]} 21. Qe1 {[%emt 0:05:32]} b5 {[%emt 0:09:28]} 22. Qxc3 {[%emt 0:00:42]} Rxc3 {[%emt 0:00:05]} 23. a4 {[%emt 0:00:58]} Bxb3 {[%emt 0:01:04]} 24. axb5 {[%emt 0:00:34]} axb5 {[%emt 0:00:12]} 25. Nd1 {[%emt 0:01:39]} Rxc2 {[%emt 0:02:28]} 26. Bxc2 {[%emt 0:01:29]} Bc4+ {[%emt 0:00:15]} 0-1

[Event "Asian Amateur-ch Open 2022"]
[Site "Muscat"]
[Date "2022.10.03"]
[Round "7.23"]
[White "Ferzli, Dany Michael"]
[Black "Al Balushi, Said"]
[Result "0-1"]
[ECO "A96"]
[WhiteElo "1789"]
[BlackElo "1495"]
[Annotator "NA RC COMBH"]
[PlyCount "100"]
[EventDate "2022.09.29"]
[EventType "swiss"]
[EventCountry "OMN"]
[SourceTitle "playchess.com"]
[Source "ChessBase"]
[SourceQuality "1"]
[TimeControl "5400+30"]

1. d4 {[%emt 0:00:02]} e6 {[%emt 0:05:39]} 2. c4 {[%emt 0:00:08]} f5 {[%emt 0:01:19]} 3. Nf3 {[%emt 0:00:06]} Nf6 {[%emt 0:00:11]} 4. g3 {[%emt 0:00:05]} Be7 {[%emt 0:00:11]} 5. Bg2 {[%emt 0:00:06]} O-O {[%emt 0:00:09]} 6. O-O {[%emt 0:00:04]} d6 {[%emt 0:00:08]} 7. Nc3 {[%emt 0:00:07]} Ne4 {[%emt 0:00:16]} 8. Qc2 {[%emt 0:00:49]} Nxc3 {[%emt 0:00:12]} 9. bxc3 {[%emt 0:00:51]} Nc6 {[%emt 0:00:06]} 10. Re1 {[%emt 0:01:43]} e5 {[%emt 0:05:01]} 11. e3 {[%emt 0:02:45]} Qe8 {[%emt 0:17:55]} 12. Rb1 {[%emt 0:10:06]} f4 {[%emt 0:08:19]} 13. gxf4 {[%emt 0:11:00]} Qh5 {[%emt 0:09:15]} 14. e4 {[%emt 0:12:27]} Bh3 {[%emt 0:04:04]} 15. Bxh3 {[%emt 0:06:02]} Qxh3 {[%emt 0:00:27]} 16. Qe2 {[%emt 0:02:47]} exf4 {[%emt 0:06:58]} 17. Rxb7 {[%emt 0:09:14]} Rf6 {[%emt 0:01:36]} 18. Kh1 {[%emt 0:00:09]} Rg6 {[%emt 0:08:56]} 19. Rg1 {[%emt 0:00:55]} Rxg1+ {[%emt 0:01:30]} 20. Nxg1 {[%emt 0:04:35]} Qxc3 {[%emt 0:03:18]} 21. Bb2 {[%emt 0:02:06]} Qa5 {[%emt 0:00:57]} 22. Qg4 {[%emt 0:03:54]} Nd8 {[%emt 0:01:33]} 23. d5 {[%emt 0:00:52]} Bf8 {[%emt 0:00:23]} 24. Rb5 {[%emt 0:12:54]} Qxa2 {[%emt 0:01:10]} 25. Qe2 {[%emt 0:04:14]} a6 {[%emt 0:01:55]} 26. Rb4 {[%emt 0:00:21]} c5 {[%emt 0:02:13]} 27. Rb6 {[%emt 0:00:40]} Qa5 {[%emt 0:02:11]} 28. Rb3 {[%emt 0:00:45]} Nf7 {[%emt 0:01:25]} 29. Rb7 {[%emt 0:02:00]} Nd8 {[%emt 0:01:51]} 30. Rb3 {[%emt 0:01:28]} Nf7 {[%emt 0:00:42]} 31. Qg4 {[%emt 0:00:34]} Re8 {[%emt 0:03:10]} 32. Rb7 {[%emt 0:00:49]} Rxe4 {[%emt 0:00:32]} 33. Rb8 {[%emt 0:05:13]} g5 {[%emt 0:05:20]} 34. Qf5 {[%emt 0:00:49]} Qe1 {[%emt 0:03:47]} 35. Qf6 {[%emt 0:01:09]} Re5 {[%emt 0:00:43]} 36. Bxe5 {[%emt 0:01:34]} Qxe5 {[%emt 0:00:16]} 37. Qxe5 {[%emt 0:01:04]} Nxe5 {[%emt 0:00:02]} 38. Ra8 {[%emt 0:00:53]} f3 {[%emt 0:01:22]} 39. Rxa6 {[%emt 0:00:32]} g4 {[%emt 0:00:38]} 40. Ra2 {[%emt 0:01:06]} Nxc4 {[%emt 0:00:33]} 41. h3 {[%emt 0:00:22]} h5 {[%emt 0:00:22]} 42. hxg4 {[%emt 0:00:57]} hxg4 {[%emt 0:00:02]} 43. Kh2 {[%emt 0:00:07]} Bh6 {[%emt 0:02:45]} 44. Kg3 {[%emt 0:00:08]} Ne5 {[%emt 0:00:17]} 45. Ra6 {[%emt 0:01:12]} c4 {[%emt 0:02:36]} 46. Rxd6 {[%emt 0:00:53]} c3 {[%emt 0:00:16]} 47. Rc6 {[%emt 0:00:46]} Nxc6 {[%emt 0:00:21]} 48. dxc6 {[%emt 0:01:34]} c2 {[%emt 0:00:09]} 49. Kxg4 {[%emt 0:00:17]} c1=Q {[%emt 0:00:20]} 50. Nxf3 {[%emt 0:01:06]} Qf4+ {[%emt 0:00:36]} 0-1

[Event "Asian Amateur-ch Open 2022"]
[Site "Muscat"]
[Date "2022.10.03"]
[Round "7.24"]
[White "Al Mamari Mohammed Salim"]
[Black "Hisoriev, Shorahmat"]
[Result "1/2-1/2"]
[ECO "D02"]
[WhiteElo "1685"]
[BlackElo "1681"]
[Annotator "NA RC COMBH"]
[PlyCount "98"]
[EventDate "2022.09.29"]
[EventType "swiss"]
[EventCountry "OMN"]
[SourceTitle "playchess.com"]
[Source "ChessBase"]
[SourceQuality "1"]
[TimeControl "5400+30"]

1. d4 {[%emt 0:00:04]} d5 {[%emt 0:00:08]} 2. Bf4 {[%emt 0:00:28]} Nf6 {[%emt 0:00:55]} 3. e3 {[%emt 0:00:21]} e6 {[%emt 0:01:04]} 4. Nf3 {[%emt 0:00:53]} c5 {[%emt 0:01:24]} 5. c3 {[%emt 0:01:10]} Qb6 {[%emt 0:01:49]} 6. Qb3 {[%emt 0:03:57]} Qxb3 {[%emt 0:01:00]} 7. axb3 {[%emt 0:00:12]} Nc6 {[%emt 0:00:05]} 8. Na3 {[%emt 0:05:56]} a6 {[%emt 0:03:56]} 9. Nb5 {[%emt 0:00:53]} Kd7 {[%emt 0:00:13]} 10. Nc7 {[%emt 0:01:44]} Ra7 {[%emt 0:00:01]} 11. Ne5+ {[%emt 0:05:39]} Nxe5 {[%emt 0:00:33]} 12. Bxe5 {[%emt 0:02:40]} Ne8 {[%emt 0:03:08]} 13. Nxe8 {[%emt 0:03:51]} Kxe8 {[%emt 0:00:22]} 14. Bd3 {[%emt 0:01:53]} f6 {[%emt 0:01:34]} 15. Bg3 {[%emt 0:02:28]} Bd7 {[%emt 0:01:14]} 16. O-O {[%emt 0:00:59]} Bc6 {[%emt 0:01:32]} 17. dxc5 {[%emt 0:03:45]} Bxc5 {[%emt 0:00:22]} 18. b4 {[%emt 0:00:02]} Bb6 {[%emt 0:00:33]} 19. b5 {[%emt 0:01:38]} Bd7 {[%emt 0:01:11]} 20. bxa6 {[%emt 0:00:24]} bxa6 {[%emt 0:00:23]} 21. Rxa6 {[%emt 0:04:48]} Rxa6 {[%emt 0:00:08]} 22. Bxa6 {[%emt 0:00:01]} Ke7 {[%emt 0:00:50]} 23. Bd3 {[%emt 0:02:59]} e5 {[%emt 0:02:13]} 24. Ra1 {[%emt 0:10:05]} h6 {[%emt 0:01:32]} 25. Kf1 {[%emt 0:03:40]} Rb8 {[%emt 0:01:18]} 26. Ra2 {[%emt 0:06:16]} Rb7 {[%emt 0:00:17]} 27. Ke2 {[%emt 0:00:53]} e4 {[%emt 0:00:17]} 28. Bc2 {[%emt 0:01:18]} Bb5+ {[%emt 0:00:25]} 29. Ke1 {[%emt 0:00:32]} g5 {[%emt 0:01:48]} 30. Ra8 {[%emt 0:03:48]} Ba7 {[%emt 0:07:57]} 31. Rh8 {[%emt 0:01:24]} Be8 {[%emt 0:00:59]} 32. b3 {[%emt 0:01:04]} h5 {[%emt 0:00:54]} 33. Bd6+ {[%emt 0:03:44]} Kxd6 {[%emt 0:00:49]} 34. Rxe8 {[%emt 0:00:22]} h4 {[%emt 0:00:47]} 35. b4 {[%emt 0:00:54]} Rb8 {[%emt 0:03:22]} 36. Rxb8 {[%emt 0:00:43]} Bxb8 {[%emt 1:03:27]} 37. Ba4 {[%emt 0:27:32]} Ke6 {[%emt 0:00:00]} 38. g3 {[%emt 0:00:00]} Be5 {[%emt 0:01:00]} 39. Kd2 {[%emt 0:01:00]} f5 {[%emt 0:00:00]} 40. gxh4 {[%emt 0:00:00]} gxh4 {[%emt 0:00:00]} 41. h3 {[%emt 0:00:00]} f4 {[%emt 0:00:00]} 42. Bc6 {[%emt 0:00:00]} fxe3+ {[%emt 0:00:00]} 43. fxe3 {[%emt 0:00:00]} Kd6 {[%emt 0:00:00]} 44. Bb5 {[%emt 0:00:00]} Bf6 {[%emt 0:03:00]} 45. c4 {[%emt 0:03:00]} dxc4 {[%emt 0:00:30]} 46. Bxc4 {[%emt 0:00:30]} Bd8 {[%emt 0:00:30]} 47. Bf7 {[%emt 0:00:30]} Bb6 {[%emt 0:00:30]} 48. Bg6 {[%emt 0:00:30]} Ke5 {[%emt 0:00:30]} 49. b5 {[%emt 0:00:30]} Bc5 {[%emt 0:00:30]} 1/2-1/2

[Event "Asian Amateur-ch Open 2022"]
[Site "Muscat"]
[Date "2022.10.03"]
[Round "7.25"]
[White "Al Rahbi, Ahmed Badar"]
[Black "Takenouchi, Atsushi"]
[Result "0-1"]
[ECO "E38"]
[WhiteElo "1321"]
[BlackElo "1629"]
[Annotator "NA RC COMBH"]
[PlyCount "76"]
[EventDate "2022.09.29"]
[EventType "swiss"]
[EventCountry "OMN"]
[SourceTitle "playchess.com"]
[Source "ChessBase"]
[SourceQuality "1"]
[TimeControl "5400+30"]

1. d4 {[%emt 0:00:03]} Nf6 {[%emt 0:00:04]} 2. c4 {[%emt 0:00:34]} e6 {[%emt 0:00:03]} 3. Nc3 {[%emt 0:00:04]} Bb4 {[%emt 0:00:11]} 4. Qc2 {[%emt 0:00:01]} c5 {[%emt 0:00:22]} 5. e3 {[%emt 0:00:36]} Nc6 {[%emt 0:01:15]} 6. Nge2 {[%emt 0:01:26]} O-O {[%emt 0:02:16]} 7. a3 {[%emt 0:02:01]} cxd4 {[%emt 0:02:02]} 8. Nxd4 {[%emt 0:02:02]} Be7 {[%emt 0:09:10]} 9. Bd3 {[%emt 0:02:00]} d6 {[%emt 0:00:18]} 10. O-O {[%emt 0:02:47]} a6 {[%emt 0:00:44]} 11. b4 {[%emt 0:00:27]} Ne5 {[%emt 0:00:19]} 12. Bb2 {[%emt 0:02:32]} Bd7 {[%emt 0:01:06]} 13. Qe2 {[%emt 0:00:45]} Rc8 {[%emt 0:00:50]} 14. Rac1 {[%emt 0:01:39]} Rc7 {[%emt 0:01:11]} 15. f4 {[%emt 0:05:24]} Nxd3 {[%emt 0:00:42]} 16. Qxd3 {[%emt 0:00:04]} Qc8 {[%emt 0:00:31]} 17. Nce2 {[%emt 0:01:58]} e5 {[%emt 0:07:17]} 18. fxe5 {[%emt 0:05:56]} dxe5 {[%emt 0:00:29]} 19. Nf5 {[%emt 0:00:24]} Bxf5 {[%emt 0:00:45]} 20. Qxf5 {[%emt 0:01:05]} Rxc4 {[%emt 0:27:35]} 21. Qxe5 {[%emt 0:05:22]} Bd8 {[%emt 0:01:59]} 22. Qg3 {[%emt 0:04:40]} Rxc1 {[%emt 0:03:41]} 23. Rxc1 {[%emt 0:07:40]} Qd7 {[%emt 0:01:39]} 24. Nd4 {[%emt 0:05:29]} Re8 {[%emt 0:07:23]} 25. Rf1 {[%emt 0:04:36]} Ne4 {[%emt 0:04:28]} 26. Qe1 {[%emt 0:06:20]} Bg5 {[%emt 0:04:38]} 27. Rf3 {[%emt 0:03:48]} g6 {[%emt 0:09:58]} 28. Nb3 {[%emt 0:14:19]} Qd3 {[%emt 0:04:18]} 29. Nc1 {[%emt 0:03:06]} Qd2 {[%emt 0:00:39]} 30. Qe2 {[%emt 0:03:55]} Qxe2 {[%emt 0:00:53]} 31. Nxe2 {[%emt 0:00:05]} Nd2 {[%emt 0:00:07]} 32. Rg3 {[%emt 0:00:59]} Bxe3+ {[%emt 0:00:15]} 33. Kh1 {[%emt 0:00:32]} Nc4 {[%emt 0:00:29]} 34. Bf6 {[%emt 0:01:45]} Nxa3 {[%emt 0:00:42]} 35. Nd4 {[%emt 0:01:09]} Bf4 {[%emt 0:01:32]} 36. Nf3 {[%emt 0:02:42]} Bxg3 {[%emt 0:00:44]} 37. hxg3 {[%emt 0:00:03]} Re6 {[%emt 0:00:52]} 38. Bd4 {[%emt 0:00:36]} Nc2 {[%emt 0:00:49]} 0-1

[Event "Asian Amateur-ch Open 2022"]
[Site "Muscat"]
[Date "2022.10.03"]
[Round "7.26"]
[White "Ghaith Saeed Alnuaimi"]
[Black "Al Amri, Mahad"]
[Result "1-0"]
[ECO "E18"]
[WhiteElo "1269"]
[BlackElo "1589"]
[Annotator "NA RC COMBH"]
[PlyCount "59"]
[EventDate "2022.09.29"]
[EventType "swiss"]
[EventCountry "OMN"]
[SourceTitle "playchess.com"]
[Source "ChessBase"]
[SourceQuality "1"]
[TimeControl "5400+30"]

1. d4 {[%emt 0:00:00]} d5 {[%emt 0:00:00]} 2. c4 {[%emt 0:00:00]} e6 {[%emt 0:00:00]} 3. Nf3 {[%emt 0:00:00]} Nf6 {[%emt 0:00:00]} 4. g3 {[%emt 0:00:00]} Be7 {[%emt 0:00:27]} 5. Bg2 {[%emt 0:00:00]} O-O {[%emt 0:00:12]} 6. O-O {[%emt 0:00:00]} b6 {[%emt 0:00:11]} 7. cxd5 {[%emt 0:00:11]} exd5 {[%emt 0:00:09]} 8. Ne5 {[%emt 0:00:06]} Bb7 {[%emt 0:00:37]} 9. Nc3 {[%emt 0:00:54]} Re8 {[%emt 0:00:21]} 10. Bf4 {[%emt 0:00:58]} a6 {[%emt 0:00:37]} 11. Rc1 {[%emt 0:01:28]} Nbd7 {[%emt 0:00:20]} 12. Qb3 {[%emt 0:01:32]} c5 {[%emt 0:01:54]} 13. Nxd7 {[%emt 0:05:12]} Qxd7 {[%emt 0:00:14]} 14. Qxb6 {[%emt 0:00:34]} Rac8 {[%emt 0:01:18]} 15. dxc5 {[%emt 0:16:33]} Bxc5 {[%emt 0:00:47]} 16. Qb3 {[%emt 0:00:05]} Re6 {[%emt 0:02:12]} 17. Bh3 {[%emt 0:02:20]} Qc6 {[%emt 0:00:46]} 18. Bg2 {[%emt 0:07:14]} Qd7 {[%emt 0:09:40]} 19. Rfd1 {[%emt 0:02:45]} Rb6 {[%emt 0:00:45]} 20. Qa4 {[%emt 0:02:54]} Qf5 {[%emt 0:02:02]} 21. Nxd5 {[%emt 0:21:59]} Bxd5 {[%emt 0:07:23]} 22. Bxd5 {[%emt 0:00:13]} g5 {[%emt 0:10:38]} 23. e4 {[%emt 0:07:01]} Qh3 {[%emt 0:04:22]} 24. Rxc5 {[%emt 0:14:58]} Rxc5 {[%emt 0:01:58]} 25. Be3 {[%emt 0:00:08]} Rbb5 {[%emt 0:05:43]} 26. Bxc5 {[%emt 0:00:44]} Ng4 {[%emt 0:00:20]} 27. Bxf7+ {[%emt 0:00:31]} Kxf7 {[%emt 0:00:15]} 28. Qc4+ {[%emt 0:00:40]} Kg6 {[%emt 0:01:39]} 29. Qe6+ {[%emt 0:00:26]} Kh5 {[%emt 0:01:22]} 30. Qf7+ {[%emt 0:00:10]} 1-0

[Event "Asian Amateur-ch Open 2022"]
[Site "Muscat"]
[Date "2022.10.03"]
[Round "7.27"]
[White "Salem Muhsan Shuaib"]
[Black "Khalili, Mehdi"]
[Result "0-1"]
[ECO "E61"]
[WhiteElo "1227"]
[BlackElo "1575"]
[Annotator "NA RC COMBH"]
[PlyCount "120"]
[EventDate "2022.09.29"]
[EventType "swiss"]
[EventCountry "OMN"]
[SourceTitle "playchess.com"]
[Source "ChessBase"]
[SourceQuality "1"]
[TimeControl "5400+30"]

1. d4 {[%emt 0:00:02]} Nf6 {[%emt 0:00:14]} 2. Nf3 {[%emt 0:01:17]} g6 {[%emt 0:00:06]} 3. c4 {[%emt 0:00:12]} Bg7 {[%emt 0:00:02]} 4. Nc3 {[%emt 0:00:17]} O-O {[%emt 0:00:03]} 5. Bg5 {[%emt 0:00:21]} d6 {[%emt 0:00:34]} 6. e3 {[%emt 0:00:13]} Bg4 {[%emt 0:00:36]} 7. Be2 {[%emt 0:01:34]} c6 {[%emt 0:00:02]} 8. h3 {[%emt 0:01:14]} Bxf3 {[%emt 0:02:22]} 9. Bxf3 {[%emt 0:00:12]} Qb6 {[%emt 0:00:47]} 10. Qb3 {[%emt 0:04:58]} Nbd7 {[%emt 0:00:56]} 11. O-O {[%emt 0:01:39]} Rac8 {[%emt 0:06:04]} 12. Rfd1 {[%emt 0:05:46]} e6 {[%emt 0:03:14]} 13. Rac1 {[%emt 0:10:00]} Rfe8 {[%emt 0:12:20]} 14. Rc2 {[%emt 0:11:42]} d5 {[%emt 0:05:03]} 15. cxd5 {[%emt 0:04:41]} cxd5 {[%emt 0:11:30]} 16. Rdc1 {[%emt 0:02:42]} Qxb3 {[%emt 0:05:51]} 17. axb3 {[%emt 0:00:10]} a6 {[%emt 0:04:00]} 18. Bxf6 {[%emt 0:00:51]} Nxf6 {[%emt 0:08:22]} 19. Nxd5 {[%emt 0:00:26]} Rxc2 {[%emt 0:02:28]} 20. Nxf6+ {[%emt 0:00:08]} Bxf6 {[%emt 0:00:10]} 21. Rxc2 {[%emt 0:00:06]} Rb8 {[%emt 0:01:00]} 22. Rc7 {[%emt 0:01:24]} b6 {[%emt 0:01:15]} 23. Kf1 {[%emt 0:11:36]} Kf8 {[%emt 0:02:50]} 24. Ke2 {[%emt 0:01:27]} Bd8 {[%emt 0:01:17]} 25. Rc6 {[%emt 0:02:25]} Ke7 {[%emt 0:01:06]} 26. Kd3 {[%emt 0:01:06]} Kd7 {[%emt 0:01:24]} 27. d5 {[%emt 0:03:00]} Bc7 {[%emt 0:04:33]} 28. dxe6+ {[%emt 0:03:40]} fxe6 {[%emt 0:00:17]} 29. Kc4 {[%emt 0:05:41]} Be5 {[%emt 0:03:19]} 30. Kd3 {[%emt 0:02:52]} Bxb2 {[%emt 0:00:38]} 31. Rc2 {[%emt 0:01:43]} Be5 {[%emt 0:00:39]} 32. Rc6 {[%emt 0:02:10]} Bd6 {[%emt 0:00:16]} 33. Kc4 {[%emt 0:03:07]} Bc7 {[%emt 0:04:44]} 34. Be4 {[%emt 0:02:22]} Rf8 {[%emt 0:00:53]} 35. f3 {[%emt 0:01:16]} Rb8 {[%emt 0:04:28]} 36. Kd3 {[%emt 0:02:51]} Bd6 {[%emt 0:03:12]} 37. Rc4 {[%emt 0:04:20]} Bc5 {[%emt 0:05:41]} 38. g4 {[%emt 0:02:18]} a5 {[%emt 0:01:30]} 39. h4 {[%emt 0:01:48]} Rd8 {[%emt 0:01:28]} 40. Ke2 {[%emt 0:02:14]} Kd6 {[%emt 0:00:51]} 41. Rc3 {[%emt 0:01:40]} Ke7 {[%emt 0:00:54]} 42. Rd3 {[%emt 0:00:36]} Rc8 {[%emt 0:02:09]} 43. Bb7 {[%emt 0:01:07]} Rc7 {[%emt 0:00:15]} 44. Be4 {[%emt 0:00:07]} Bd6 {[%emt 0:00:33]} 45. Kd2 {[%emt 0:01:40]} Bb4+ {[%emt 0:00:02]} 46. Ke2 {[%emt 0:00:01]} Rc2+ {[%emt 0:00:57]} 47. Kd1 {[%emt 0:00:29]} Rh2 {[%emt 0:00:36]} 48. h5 {[%emt 0:00:44]} gxh5 {[%emt 0:00:11]} 49. gxh5 {[%emt 0:00:06]} Rxh5 {[%emt 0:00:15]} 50. Ke2 {[%emt 0:00:43]} Rh2+ {[%emt 0:00:07]} 51. Kf1 {[%emt 0:00:15]} h5 {[%emt 0:00:17]} 52. Kg1 {[%emt 0:00:32]} Rb2 {[%emt 0:01:08]} 53. f4 {[%emt 0:01:01]} h4 {[%emt 0:01:13]} 54. Bg2 {[%emt 0:00:35]} Bc5 {[%emt 0:01:31]} 55. Kf1 {[%emt 0:00:31]} Ra2 {[%emt 0:01:00]} 56. Rc3 {[%emt 0:01:06]} Ra3 {[%emt 0:00:12]} 57. Be4 {[%emt 0:00:54]} a4 {[%emt 0:00:32]} 58. Bc2 {[%emt 0:00:16]} Ra1+ {[%emt 0:00:35]} 59. Kg2 {[%emt 0:00:20]} a3 {[%emt 0:00:02]} 60. Rc4 {[%emt 0:00:52]} Rc1 {[%emt 0:00:29]} 0-1

[Event "Asian Amateur-ch Open 2022"]
[Site "Muscat"]
[Date "2022.10.03"]
[Round "7.30"]
[White "Salim Mohammed, Salim Al Amri"]
[Black "Al Ryami, Mustafa"]
[Result "1-0"]
[ECO "C50"]
[WhiteElo "1952"]
[BlackElo "1488"]
[Annotator "TA"]
[PlyCount "59"]
[EventDate "2022.09.29"]
[EventType "swiss"]
[EventCountry "OMN"]
[SourceTitle "playchess.com"]
[Source "ChessBase"]
[SourceQuality "1"]
[TimeControl "5400+30"]

{[%evp 10,58,73,40,91,88,106,79,83,83,142,134,145,103,121,107,142,111,110,58,131,131,195,177,453,302,558,379,510,400,387,370,389,352,538,527,560,534,546,534,509,412,778,751,906,887,1167,1168,2529,2388,29999]} 1. e4 {[%emt 0:00:03]} e5 {[%emt 0:02:56]} 2. Nc3 {[%emt 0:01:59]} Nc6 {[%emt 0:01:47]} 3. Nf3 {[%emt 0:01:10]} d6 {[%emt 0:01:57]} 4. d4 {[%emt 0:01:00]} exd4 {[%emt 0:00:09]} 5. Nxd4 {[%emt 0:00:02]} Bd7 {[%emt 0:01:36]} 6. Bc4 {[%emt 0:00:21]} Ne5 {[%emt 0:01:39] C50: Hungarian Defence and Giuoco Pianissimo.} (6... Nf6 $14) 7. Be2 $16 {[%emt 0:00:17]} c5 {[%emt 0:06:01]} 8. Nf3 {[%emt 0:00:07] [#]} Bc6 $146 {[%emt 0:07:55] White is better.} ({Predecessor:} 8... Nxf3+ 9. Bxf3 Bc6 10. O-O Nf6 11. Nd5 h6 12. c4 Nxd5 13. exd5 Bd7 14. Re1+ Be7 {1-0 (43) Kratky,J (1324)-Pauk,J (787) LSS email 2017}) 9. Bf4 {[%emt 0:00:50]} f6 {[%emt 0:08:21]} ({Black should try} 9... Ng6 10. Qd2 Be7) 10. O-O {[%emt 0:01:18]} Ne7 {[%emt 0:02:49]} 11. Qd2 {[%emt 0:00:29]} N7g6 {[%emt 0:01:00]} 12. Bg3 {[%emt 0:00:03]} Nxf3+ {[%emt 0:01:26]} 13. gxf3 {[%emt 0:00:21]} Qd7 {[%emt 0:02:16]} 14. Nd5 {[%emt 0:01:06]} (14. Rfd1 $16) 14... Rd8 {[%emt 0:02:23]} (14... O-O-O $14) 15. f4 {[%emt 0:00:30] White has more active pieces. The black rooks are badly placed.} Bxd5 {[%emt 0:07:43]} (15... h5 $16 {might work better.}) 16. Qxd5 $18 {[%emt 0:00:36] [#] Threatens to win with Bh5.} ({Much less strong is} 16. exd5 $6 Be7 $14) 16... Be7 $2 {[%emt 0:02:41]} (16... Ne7 17. Qb3 h5) 17. Bc4 {[%emt 0:01:44][%csl Gc4][%cal Rd5f7,Be2c4,Bc4b3,Bb3e6][%mdl 32]} Rf8 {[%emt 0:00:25] Prevents Qf7+.} (17... Rc8 {was worth a try.} 18. Qf7+ Kd8) 18. a4 {[%emt 0:00:13][%cal Ba2a4,Ba4a5][%mdl 32]} a6 {[%emt 0:00:18] Against Bb5} 19. a5 {[%emt 0:00:16]} Rc8 {[%emt 0:01:21]} 20. Bb3 {[%emt 0:00:18]} Kd8 {[%emt 0:01:39]} 21. Rfd1 {[%emt 0:00:41][%cal Bf1d1,Bd1d3,Bd3b3,Bb3b6][%mdl 32]} Qc6 {[%emt 0:00:47]} (21... Rc7 {was necessary.} 22. e5 Rc6) 22. Qf5 {[%emt 0:00:19] [#] Strongly threatening Ba4.} Qd7 {[%emt 0:04:46]} 23. Be6 {[%emt 0:00:15]} Qc6 {[%emt 0:00:02]} 24. c4 {[%emt 0:00:35]} Kc7 {[%emt 0:02:10]} 25. Rd3 {[%emt 0:00:40] Rb3 is the strong threat.} Rcd8 {[%emt 0:00:53]} (25... Kb8 $142 26. Bxc8 Qxc8) 26. Rb3 {[%emt 1:28:17] Hoping for Bd5.} Rb8 {[%emt 0:00:32]} 27. Rb6 {[%emt 0:00:00]} Qe8 {[%emt 0:01:02]} 28. Qd5 {[%emt 0:00:00]} Nh8 {[%emt 0:00:29]} 29. f5 {[%emt 0:00:00][%csl LRc5,LRd6][%cal Rg3d6]} Qd8 {[%emt 0:00:41]} 30. Qxc5# {[%emt 0:00:00] Weighted Error Value: White=0.42/Black=0.90} 1-0

[Event "Asian Amateur-ch Open 2022"]
[Site "Muscat"]
[Date "2022.10.03"]
[Round "7.31"]
[White "Ahmed Waqqas, Alawlaqi"]
[Black "Hayabik, Husain"]
[Result "0-1"]
[ECO "C27"]
[WhiteElo "1417"]
[BlackElo "1828"]
[Annotator "NA RC COMBH"]
[PlyCount "60"]
[EventDate "2022.09.29"]
[EventType "swiss"]
[EventCountry "OMN"]
[SourceTitle "playchess.com"]
[Source "ChessBase"]
[SourceQuality "1"]
[TimeControl "5400+30"]

1. e4 {[%emt 0:00:03]} e5 {[%emt 0:00:06]} 2. Nc3 {[%emt 0:00:09]} Nf6 {[%emt 0:00:11]} 3. Bc4 {[%emt 0:00:23]} c6 {[%emt 0:00:52]} 4. Qe2 {[%emt 0:04:18]} d6 {[%emt 0:01:14]} 5. d3 {[%emt 0:00:30]} Be7 {[%emt 0:00:07]} 6. Bd2 {[%emt 0:02:55]} O-O {[%emt 0:00:03]} 7. O-O-O {[%emt 0:01:39]} b5 {[%emt 0:00:01]} 8. Bb3 {[%emt 0:00:23]} a5 {[%emt 0:00:03]} 9. a4 {[%emt 0:01:36]} bxa4 {[%emt 0:00:38]} 10. Nxa4 {[%emt 0:01:08]} Be6 {[%emt 0:00:39]} 11. Bxe6 {[%emt 0:02:09]} fxe6 {[%emt 0:00:02]} 12. g4 {[%emt 0:04:15]} Nbd7 {[%emt 0:00:20]} 13. g5 {[%emt 0:00:45]} Ne8 {[%emt 0:00:02]} 14. Qg4 {[%emt 0:02:45]} Nc7 {[%emt 0:00:04]} 15. g6 {[%emt 0:02:19]} Nf6 {[%emt 0:04:13]} 16. gxh7+ {[%emt 0:05:57]} Kxh7 {[%emt 0:00:22]} 17. Qh3+ {[%emt 0:00:43]} Kg8 {[%emt 0:00:04]} 18. Nf3 {[%emt 0:00:34]} Qe8 {[%emt 0:00:26]} 19. Rdg1 {[%emt 0:04:07]} Qh5 {[%emt 0:00:28]} 20. Qg3 {[%emt 0:01:05]} Nfe8 {[%emt 0:00:26]} 21. Ne1 {[%emt 0:03:54]} Nb5 {[%emt 0:01:10]} 22. c3 {[%emt 0:03:22]} Rb8 {[%emt 0:00:06]} 23. Qe3 {[%emt 0:03:02]} d5 {[%emt 0:01:17]} 24. exd5 {[%emt 0:03:58]} exd5 {[%emt 0:00:08]} 25. Rg3 {[%emt 0:10:59]} d4 {[%emt 0:03:59]} 26. Qe4 {[%emt 0:00:26]} dxc3 {[%emt 0:00:59]} 27. bxc3 {[%emt 0:05:48]} Ba3+ {[%emt 0:01:50]} 28. Kc2 {[%emt 0:01:11]} Qf7 {[%emt 0:03:53]} 29. Kd1 {[%emt 0:08:55]} Nbd6 {[%emt 0:02:52]} 30. Qxc6 {[%emt 0:06:02]} Rb1+ {[%emt 0:01:02]} 0-1